fUSD/lending_fUSD_20251026
["ID","MTS","AMOUNT","RATE_DAILY","PERIOD"]
[392440519,1761475879503,-2000.0,0.0009,120]
[392440520,1761475879513,-150.0,0.0009,120]
[392440521,1761475879523,-903.54546355,0.0009,120]
[392440522,1761475879533,-301.53,0.0009,2]
[392440523,1761475879546,-72305.39721367,0.0009,120]
[392440524,1761475879556,-103189.27874276,0.0009,120]
[392440525,1761475879566,-1000.0,0.0009,2]
[392440526,1761475879576,-500.0,0.0009,120]
[392440527,1761475879585,-1000.0,0.0009,120]
[392440528,1761475879594,-2000.0,0.0009,120]
[392440529,1761475879604,-500.0,0.0009,120]
[392440530,1761475879615,-375.785,0.00090643,120]
[392440531,1761475879624,-7322.34,0.00091,30]
[392440532,1761475879634,-200.36,0.00091564,120]
[392440533,1761475879643,-273.81,0.00091774,120]
[392440534,1761475879652,-297.36,0.0009178,120]
[392440535,1761475879662,-4409.46,0.000919,120]
[392440536,1761475879671,-2000.0,0.0009352,64]
[392440537,1761475879680,-2000.0,0.0009365,75]
[392440538,1761475879689,-1000.0,0.00094399,120]
[392440539,1761475879698,-999.0,0.0009452,120]
[392440540,1761475879707,-3000.0,0.00094653,75]
[392440541,1761475879716,-500.0,0.00095,120]
[392440542,1761475879726,-500.0,0.00095,120]
[392440543,1761475879735,-2000.0,0.000953,68]
[392440544,1761475879744,-297.36,0.00095809,120]
[392440545,1761475879753,-2000.0,0.0009586,64]
[392440546,1761475879763,-3000.0,0.0009653,71]
[392440547,1761475879772,-1000.0,0.00097399,120]
[392440548,1761475879781,-2000.0,0.0009742,66]
[392440549,1761475879791,-22744.30383416,0.000975,120]
[392440550,1761475879800,-2689.90082292,0.000975,120]
[392440551,1761475879808,-200.36,0.00098053,120]
[392440552,1761475879818,-2000.0,0.0009852,66]
[392440553,1761475879827,-2000.0,0.000986,81]
[392440554,1761475879836,-3000.0,0.0009864,71]
[392440555,1761475879845,-267.68225064,0.000987,120]
[392440556,1761475879855,-20027.4639271,0.000989,5]
[392440557,1761475879863,-2500.0,0.000989,120]
[392440558,1761475879873,-541.20204788,0.00099,120]
[392440559,1761475879882,-753.74,0.00099,30]
[392440560,1761475879891,-2061.13,0.000992,120]
[392440561,1761475879900,-297.36,0.00099838,120]
[392440562,1761475879912,-1000.0,0.00099999,120]
[392440563,1761475879921,-50000.0,0.001,100]
[392440564,1761475879930,-1000.0,0.001,120]
[392440565,1761475879939,-2000.0,0.001,120]
[392440566,1761475879949,-1974.24897253,0.001,120]
[392440567,1761475879959,-150.92391816,0.001,120]
[392440568,1761475879971,-3184.91746622,0.001,120]
[392440569,1761475879980,-2112.23547288,0.001,120]
[392440570,1761475879989,-7453.43405525,0.001,120]
[392440571,1761475879998,-500.0,0.001,120]
[392440572,1761475880008,-1000.0,0.001,120]
[392440573,1761475880017,-4879.08120033,0.001,120]
[392440574,1761475880027,-300.0,0.001,120]
[392440575,1761475880036,-2000.0,0.001,120]
[392440576,1761475880045,-300.0,0.001,120]
[392440577,1761475880054,-230.0,0.001,30]
[392440578,1761475880063,-170.73187906,0.001,2]
[392440579,1761475880072,-4710.98,0.001,60]
[392440580,1761475880081,-999.0,0.00102739,120]
[392440581,1761475880090,-200.36,0.00104542,120]
[392440582,1761475880099,-360.99,0.001057,120]
[392440583,1761475880108,-1000.0,0.0011,120]
[392440584,1761475880117,-375.785,0.0011,120]
[392440585,1761475880127,-999.0,0.00110958,120]
[392440586,1761475880136,-200.36,0.00111031,120]
[392440587,1761475880147,-150.0,0.00114102,120]
[392440588,1761475880157,-200.36,0.0011752,120]
[392440589,1761475880246,-2500.0,0.001189,120]
[392440590,1761475880258,-999.0,0.00119178,120]
[392440591,1761475880267,-506.81,0.0012,120]
[392440592,1761475880276,-200.36,0.00124009,120]
[392440593,1761475880285,-3500.0,0.001265,78]
[392440594,1761475880297,-999.0,0.00127397,120]
[392440595,1761475880306,-13304.09438498,0.00129,120]
[392440596,1761475880318,-3000.0,0.0012954,120]
[392440597,1761475880327,-1000.0,0.0013,120]
[392440598,1761475880337,-200.36,0.00130497,120]
[392440599,1761475880346,-865.70989175,0.00135616,120]
[392440600,1761475880355,-200.36,0.00136986,120]
[392440601,1761475880364,-1000.0,0.0014,120]
[392440602,1761475880373,-200.0,0.0014,120]
[392440603,1761475880383,-15000.0,0.0014,120]
[392440604,1761475880393,-3000.0,0.001463,71]
[392440605,1761475880404,-2500.0,0.001489,120]
[392440606,1761475880415,-2000.0,0.0015,120]
[392440607,1761475880423,-1138.46820138,0.0015,120]
[392440608,1761475880433,-302.98172874,0.0015,120]
[392440609,1761475880443,-177.22910761,0.0015,2]
[392440610,1761475880452,-500.0,0.0015,120]
[392440611,1761475880460,-1000.0,0.0015,120]
[392440612,1761475880470,-5000.0,0.0015,120]
[392440613,1761475880481,-3011.17,0.00159,120]
[392440614,1761475880491,-1000.0,0.0016,120]
[392440615,1761475880500,-30000.0,0.0016,120]
[392440616,1761475880510,-1000.0,0.0017,120]
[392440617,1761475880520,-150.0,0.00175045,120]
[392440618,1761475880530,-1518.3338596,0.0018,7]
[392440619,1761475880539,-1000.0,0.0018,120]
[392440620,1761475880550,-1000.0,0.00185,2]
[392440621,1761475880559,-4000.0,0.001865,71]
[392440622,1761475880568,-150.0,0.0019,120]
[392440623,1761475880577,-153.36920074,0.00191407,120]
[392440624,1761475880587,-32152.6532432,0.00191769,60]
[392440625,1761475880597,-19862.8140874,0.0019294,60]
[392440626,1761475880606,-3000.0,0.001986,81]
[392440627,1761475880615,-2500.0,0.001989,120]
[392440628,1761475880624,-1000.0,0.00199999,120]
[392440629,1761475880634,-1401.0,0.00199999,120]
[392440630,1761475880643,-1000.0,0.002,120]
[392440631,1761475880652,-995.0,0.002,120]
[392440632,1761475880661,-9239.93535441,0.002,120]
[392440633,1761475880671,-2000.0,0.002,120]
[392440634,1761475880681,-424.68218432,0.002,2]
[392440635,1761475880690,-500.0,0.002,120]
[392440636,1761475880699,-1000.0,0.002,120]
[392440637,1761475880708,-300.0,0.002,120]
[392440638,1761475880717,-2000.0,0.002,120]
[392440639,1761475880726,-2067.91,0.002,30]
[392440640,1761475880736,-9833.0,0.002,120]
[392440641,1761475880745,-374.0,0.002,120]
[392440642,1761475880755,-937.2185552,0.00206509,120]
[392440643,1761475880763,-164.29522973,0.00207648,120]
[392440644,1761475880774,-2346.46,0.00213,120]
[392440645,1761475880782,-500.0,0.00219178,120]
[392440646,1761475880792,-500.0,0.00219178,120]
[392440647,1761475880801,-500.0,0.00219178,120]
[392440648,1761475880810,-500.0,0.00219178,120]
[392440649,1761475880821,-500.0,0.00219178,120]
[392440650,1761475880831,-500.0,0.00219178,120]
[392440651,1761475880840,-500.0,0.00219178,120]
[392440652,1761475880851,-500.0,0.00219178,120]
[392440653,1761475880863,-500.0,0.00219178,120]
[392440654,1761475880873,-500.0,0.00219178,120]
[392440655,1761475880882,-500.0,0.00219178,120]
[392440656,1761475880892,-500.0,0.00219178,120]
[392440657,1761475880901,-500.0,0.00219178,120]
[392440658,1761475880915,-500.0,0.00219178,120]
[392440659,1761475880926,-500.0,0.00219178,120]
[392440660,1761475880934,-500.0,0.00219178,120]
[392440661,1761475880944,-500.0,0.00219178,120]
[392440662,1761475880954,-500.0,0.00219178,120]
[392440663,1761475880963,-500000.0,0.002222,120]
[392440664,1761475880972,-175.6865403,0.0022389,120]
[392440665,1761475880982,-500.0,0.00224658,120]
[392440666,1761475880993,-500.0,0.00224658,120]
[392440667,1761475881004,-2000.0,0.002256,72]
[392440668,1761475881015,-500.0,0.00230137,120]
[392440669,1761475881026,-500.0,0.00230137,120]
[392440670,1761475881035,-161.0,0.002323,120]
[392440671,1761475881045,-500.0,0.00235616,120]
[392440672,1761475881053,-500.0,0.00235616,120]
[392440673,1761475881063,-150.0,0.00238201,120]
[392440674,1761475881071,-200.0,0.0024,120]
[392440675,1761475881080,-200.0,0.0024,120]
[392440676,1761475881091,-187.52485017,0.00240132,120]
[392440677,1761475881101,-500.0,0.00241096,120]
[392440678,1761475881110,-500.0,0.00241096,120]
[392440679,1761475881120,-2000.0,0.002432,72]
[392440680,1761475881129,-3000.0,0.002456,81]
[392440681,1761475881137,-500.0,0.00246575,120]
[392440682,1761475881146,-500.0,0.00246575,120]
[392440683,1761475881155,-2000.0,0.0025,120]
[392440684,1761475881164,-339.54150303,0.0025,10]
[392440685,1761475881174,-5000.36925814,0.0025,120]
[392440686,1761475881184,-500.0,0.00252055,120]
[392440687,1761475881195,-500.0,0.00252055,120]
[392440688,1761475881204,-199.79387734,0.00256374,120]
[392440689,1761475881214,-4000.0,0.002565,71]
[392440690,1761475881224,-1430.33952111,0.002574,120]
[392440691,1761475881233,-500.0,0.00257534,120]
[392440692,1761475881242,-500.0,0.00257534,120]
[392440693,1761475881251,-2500.0,0.002589,120]
[392440694,1761475881262,-516.6684846,0.00263014,120]
[392440695,1761475881272,-500.0,0.00263014,120]
[392440696,1761475881281,-2000.0,0.002683,81]
[392440697,1761475881290,-500.0,0.00268493,120]
[392440698,1761475881301,-54883.4696867,0.0027,120]
[392440699,1761475881311,-3101.88,0.0027,120]
[392440700,1761475881319,-212.47899979,0.00272615,120]
[392440701,1761475881327,-500.0,0.00273973,120]
[392440702,1761475881336,-500.0,0.00273973,120]
[392440703,1761475881345,-500.0,0.00273973,120]
[392440704,1761475881355,-500.0,0.00273973,120]
[392440705,1761475881364,-500.0,0.00273973,120]
[392440706,1761475881373,-500.0,0.00273973,120]
[392440707,1761475881381,-500.0,0.00273973,120]
[392440708,1761475881390,-500.0,0.00273973,120]
[392440709,1761475881399,-500.0,0.00273973,120]
[392440710,1761475881408,-500.0,0.00273973,120]
[392440711,1761475881417,-500.0,0.00273973,120]
[392440712,1761475881426,-500.0,0.00273973,120]
[392440713,1761475881435,-500.0,0.00273973,120]
[392440714,1761475881443,-500.0,0.00273973,120]
[392440715,1761475881453,-500.0,0.00273973,120]
[392440716,1761475881462,-546.43290314,0.00273973,120]
[392440717,1761475881471,-500.0,0.00274747,120]
[392440718,1761475881480,-500.0,0.00279452,120]
[392440719,1761475881489,-500.0,0.00284932,120]
[392440720,1761475881498,-225.56699119,0.00288857,120]
[392440721,1761475881507,-150.0,0.0029,120]
[392440722,1761475881516,-1748.0,0.0029,120]
[392440723,1761475881526,-500.0,0.00290411,120]
[392440724,1761475881535,-5000.0,0.002954,120]
[392440725,1761475881544,-500.0,0.0029589,120]
[392440726,1761475881553,-944.44444444,0.00297,120]
[392440727,1761475881564,-19862.8140874,0.00297582,90]
[392440728,1761475881650,-32152.6532432,0.00298747,90]
[392440729,1761475881659,-1000.0,0.00299999,120]
[392440730,1761475881669,-1000.0,0.003,120]
[392440731,1761475881678,-2000.0,0.003,120]
[392440732,1761475881687,-4657.84458259,0.003,120]
[392440733,1761475881696,-5000.69584721,0.003,120]
[392440734,1761475881705,-1000.0,0.003,120]
[392440735,1761475881714,-300.0,0.003,120]
[392440736,1761475881723,-2000.0,0.003,120]
[392440737,1761475881731,-500.0,0.0030137,120]
[392440738,1761475881740,-944.44444444,0.00302,120]
[392440739,1761475881749,-239.04581197,0.00305099,120]
[392440740,1761475881758,-500.0,0.00306849,120]
[392440741,1761475881768,-944.44444444,0.00307,120]
[392440742,1761475881777,-944.44444444,0.00312,120]
[392440743,1761475881786,-500.0,0.00312329,120]
[392440744,1761475881795,-944.44444444,0.00317,120]
[392440745,1761475881803,-500.0,0.00317808,120]
[392440746,1761475881812,-252.90444175,0.00321341,120]
[392440747,1761475881821,-944.44444444,0.00322,120]
[392440748,1761475881830,-162.0,0.00323,120]
[392440749,1761475881839,-500.0,0.00323288,120]
[392440750,1761475881848,-160.40990674,0.00325,30]
[392440751,1761475881857,-2000.0,0.003256,68]
[392440752,1761475881866,-944.44444444,0.00327,120]
[392440753,1761475881875,-500.0,0.00328767,120]
[392440754,1761475881884,-944.44444444,0.00332,120]
[392440755,1761475881892,-500.0,0.00334247,120]
[392440756,1761475881902,-944.44444444,0.00337,120]
[392440757,1761475881914,-267.13274313,0.00337582,120]
[392440758,1761475881923,-500.0,0.00339726,120]
[392440759,1761475881932,-200.0,0.0034,120]
[392440760,1761475881941,-944.44444444,0.00342,120]
[392440761,1761475881950,-500.0,0.00345205,120]
[392440762,1761475881959,-944.44444444,0.00347,120]
[392440763,1761475881969,-5000.0,0.0035,60]
[392440764,1761475881978,-2000.0,0.0035,120]
[392440765,1761475881987,-5000.12345678,0.0035,120]
[392440766,1761475881995,-500.0,0.00350685,120]
[392440767,1761475882006,-3011.17,0.00351,120]
[392440768,1761475882015,-944.44444444,0.00352,120]
[392440769,1761475882023,-281.72134974,0.00353824,120]
[392440770,1761475882034,-150.0,0.00354647,120]
[392440771,1761475882043,-500.0,0.00356164,120]
[392440772,1761475882051,-944.44444444,0.00357,120]
[392440773,1761475882060,-1500.0,0.003589,120]
[392440774,1761475882069,-500.0,0.00361644,120]
[392440775,1761475882078,-944.44444444,0.00362,120]
[392440776,1761475882087,-2000.0,0.003652,81]
[392440777,1761475882097,-944.44444444,0.00367,120]
[392440778,1761475882105,-500.0,0.00367123,120]
[392440779,1761475882114,-4000.0,0.003695,71]
[392440780,1761475882123,-296.66157312,0.00370066,120]
[392440781,1761475882132,-944.44444444,0.00372,120]
[392440782,1761475882142,-500.0,0.00372603,120]
[392440783,1761475882152,-944.44444444,0.00377,120]
[392440784,1761475882161,-500.0,0.00378082,120]
[392440785,1761475882171,-9603.68,0.003788,120]
[392440786,1761475882182,-2000.0,0.00380612,120]
[392440787,1761475882191,-944.44444444,0.00382,120]
[392440788,1761475882200,-500.0,0.00383562,120]
[392440789,1761475882210,-311.94532473,0.00386308,120]
[392440790,1761475882219,-944.44444444,0.00387,120]
[392440791,1761475882227,-1350.00879156,0.00387578,120]
[392440792,1761475882236,-500.0,0.00389041,120]
[392440793,1761475882246,-3990.999,0.0039,60]
[392440794,1761475882255,-150.0,0.0039,120]
[392440795,1761475882265,-12085.48198344,0.0039,120]
[392440796,1761475882274,-944.44444444,0.00392,120]
[392440797,1761475882283,-32152.6532432,0.00393894,120]
[392440798,1761475882292,-500.0,0.00394521,120]
[392440799,1761475882302,-19862.8140874,0.00395613,120]
[392440800,1761475882311,-944.44444444,0.00397,120]
[392440801,1761475882321,-203.47,0.0039978,120]
[392440802,1761475882331,-1000.0,0.00399999,120]
[392440803,1761475882340,-1401.31273044,0.00399999,120]
[392440804,1761475882349,-1000.0,0.004,120]
[392440805,1761475882359,-2000.0,0.004,120]
[392440806,1761475882368,-5000.74125836,0.004,120]
[392440807,1761475882377,-1000.0,0.004,120]
[392440808,1761475882386,-1000.0,0.004,120]
[392440809,1761475882395,-300.0,0.004,120]
[392440810,1761475882404,-2000.0,0.004,120]
[392440811,1761475882413,-549.0,0.004,120]
[392440812,1761475882422,-500.0,0.004,120]
[392440813,1761475882431,-944.44444444,0.00402,120]
[392440814,1761475882440,-327.56504988,0.00402549,120]
[392440815,1761475882449,-157.0,0.0040538,120]
[392440816,1761475882458,-500.0,0.00405479,120]
[392440817,1761475882467,-944.44444444,0.00407,120]
[392440818,1761475882477,-500.0,0.00410959,120]
[392440819,1761475882486,-944.44444444,0.00412,120]
[392440820,1761475882495,-500.0,0.00416438,120]
[392440821,1761475882505,-944.44444444,0.00417,120]
[392440822,1761475882515,-343.51367147,0.00418791,120]
[392440823,1761475882524,-500.0,0.00421918,120]
[392440824,1761475882533,-944.44444444,0.00422,120]
[392440825,1761475882542,-2000.0,0.004263,81]
[392440826,1761475882552,-944.44444444,0.00427,120]
[392440827,1761475882561,-500.0,0.00427397,120]
[392440828,1761475882570,-944.44444444,0.00432,120]
[392440829,1761475882579,-500.0,0.00432877,120]
[392440830,1761475882589,-359.7845417,0.00435033,120]
[392440831,1761475882599,-944.44444444,0.00437,120]
[392440832,1761475882608,-500.0,0.00438356,120]
[392440833,1761475882617,-200.0,0.0044,120]
[392440834,1761475882626,-944.44444444,0.00442,120]
[392440835,1761475882635,-500.0,0.00443836,120]
[392440836,1761475882644,-4000.0,0.004444,69]
[392440837,1761475882653,-816907.36347389,0.0044444,120]
[392440838,1761475882663,-944.44444444,0.00447,120]
[392440839,1761475882672,-500.0,0.00449315,120]
[392440840,1761475882681,-5000.0,0.0045,60]
[392440841,1761475882690,-2000.0,0.0045,120]
[392440842,1761475882700,-5000.25136497,0.0045,120]
[392440843,1761475882709,-500.0,0.0045,120]
[392440844,1761475882718,-376.37140034,0.00451275,120]
[392440845,1761475882728,-944.44444444,0.00452,120]
[392440846,1761475882738,-2000.0,0.004523,72]
[392440847,1761475882747,-163.0,0.004538,120]
[392440848,1761475882756,-500.0,0.00454795,120]
[392440849,1761475882765,-2000.0,0.004563,81]
[392440850,1761475882775,-944.44444444,0.00457,120]
[392440851,1761475882784,-12169.69160914,0.0045885,120]
[392440852,1761475882794,-500.0,0.00460274,120]
[392440853,1761475882802,-944.44444444,0.00462,120]
[392440854,1761475882812,-500.0,0.00465753,120]
[392440855,1761475882821,-944.44444444,0.00467,120]
[392440856,1761475882903,-393.26833845,0.00467516,120]
[392440857,1761475882917,-1500.0,0.004689,120]
[392440858,1761475882929,-500.0,0.00471233,120]
[392440859,1761475882938,-944.44444444,0.00472,120]
[392440860,1761475882947,-700.00000001,0.00474747,120]
[392440861,1761475882958,-500.0,0.00476712,120]
[392440862,1761475882968,-944.44444444,0.00477,120]
[392440863,1761475882980,-13625.439999,0.004788,120]
[392440864,1761475882991,-111111.0,0.0048,120]
[392440865,1761475883001,-515.61937099,0.0048,120]
[392440866,1761475883011,-944.44444444,0.00482,120]
[392440867,1761475883021,-500.0,0.00482192,120]
[392440868,1761475883031,-410.46976673,0.00483758,120]
[392440869,1761475883040,-944.44444444,0.00487,120]
[392440870,1761475883050,-500.0,0.00487671,120]
[392440871,1761475883059,-3000.0,0.00488,120]
[392440872,1761475883069,-2000.0,0.00489,120]
[392440873,1761475883078,-150.0,0.0049,120]
[392440874,1761475883087,-727.03226126,0.0049,120]
[392440875,1761475883097,-15083.40819507,0.0049,60]
[392440876,1761475883106,-425837.12097164,0.0049,120]
[392440877,1761475883115,-141883.47492486,0.0049,120]
[392440878,1761475883124,-13892.19863344,0.0049,120]
[392440879,1761475883134,-944.44444444,0.00492,120]
[392440880,1761475883143,-500.0,0.00493151,120]
[392440881,1761475883191,-19862.8140874,0.00493668,120]
[392440882,1761475883202,-32152.6532432,0.00494297,120]
[392440883,1761475883211,-944.44444444,0.00497,120]
[392440884,1761475883221,-500.0,0.0049863,120]
[392440885,1761475883230,-1000.0,0.00499999,120]
[392440886,1761475883239,-50000.0,0.005,120]
[392440887,1761475883249,-1000.0,0.005,120]
[392440888,1761475883259,-2000.0,0.005,120]
[392440889,1761475883269,-2272.8114656,0.005,120]
[392440890,1761475883279,-35000.0,0.005,90]
[392440891,1761475883288,-711.04421483,0.005,120]
[392440892,1761475883298,-245.0,0.005,120]
[392440893,1761475883307,-1000.0,0.005,120]
[392440894,1761475883317,-300.0,0.005,120]
[392440895,1761475883327,-3230.79574446,0.005,120]
[392440896,1761475883336,-1000.0,0.005,120]
[392440897,1761475883345,-1911.80086433,0.005,120]
[392440898,1761475883355,-8393.20163246,0.005,30]
[392440899,1761475883364,-343.80518376,0.005,120]
[392440900,1761475883374,-427.97038778,0.005,120]
[392440901,1761475883383,-944.44444444,0.00502,120]
[392440902,1761475883392,-500.0,0.0050411,120]
[392440903,1761475883401,-944.44444444,0.00507,120]
[392440904,1761475883410,-500.0,0.00509589,120]
[392440905,1761475883420,-944.44444444,0.00512,120]
[392440906,1761475883429,-500.0,0.00515068,120]
[392440907,1761475883439,-944.44444444,0.00517,120]
[392440908,1761475883448,-500.0,0.00520548,120]
[392440909,1761475883458,-944.44444444,0.00522,120]
[392440910,1761475883468,-500.0,0.00526027,120]
[392440911,1761475883477,-944.44444444,0.00527,120]
[392440912,1761475883487,-417.48747756,0.0053,120]
[392440913,1761475883496,-500.0,0.00531507,120]
[392440914,1761475883506,-944.44444444,0.00532,120]
[392440915,1761475883522,-964.78,0.00534,120]
[392440916,1761475883542,-500.0,0.00536986,120]
[392440917,1761475883561,-944.44444444,0.00537,120]
[392440918,1761475883582,-171.0,0.00538,120]
[392440919,1761475883600,-4977.80220001,0.0054,60]
[392440920,1761475883618,-59762.977195,0.0054,120]
[392440921,1761475883636,-5000.0,0.0054,120]
[392440922,1761475883655,-200.0,0.0054,120]
[392440923,1761475883675,-1022.0,0.0054,120]
[392440924,1761475883694,-944.44444444,0.00542,120]
[392440925,1761475883712,-500.0,0.00542466,120]
[392440926,1761475883730,-1000.0,0.00545205,120]
[392440927,1761475883746,-1000.0,0.00545205,120]
[392440928,1761475883762,-1000.0,0.00545205,120]
[392440929,1761475883778,-1000.0,0.00545205,120]
[392440930,1761475883791,-1000.0,0.00545205,120]
[392440931,1761475883807,-1000.0,0.00545205,120]
[392440932,1761475883822,-1000.0,0.00545205,120]
[392440933,1761475883836,-1000.0,0.00545205,120]
[392440934,1761475883852,-1000.0,0.00545205,120]
[392440935,1761475883865,-1000.0,0.00545205,120]
[392440936,1761475883880,-1000.0,0.00545205,120]
[392440937,1761475883895,-1000.0,0.00545205,120]
[392440938,1761475883911,-1000.0,0.00545205,120]
[392440939,1761475883926,-1000.0,0.00545205,120]
[392440940,1761475883941,-1000.0,0.00545205,120]
[392440941,1761475883956,-1000.0,0.00545205,120]
[392440942,1761475883971,-211.73099122,0.00545205,120]
[392440943,1761475883985,-4000.0,0.005466,69]
[392440944,1761475884000,-944.44444444,0.00547,120]
[392440945,1761475884014,-500.0,0.00547945,120]
[392440946,1761475884028,-512.13991255,0.00547945,120]
[392440947,1761475884042,-500.0,0.00547945,120]
[392440948,1761475884059,-500.0,0.00547945,120]
[392440949,1761475884073,-500.0,0.00547945,120]
[392440950,1761475884088,-500.0,0.00547945,120]
[392440951,1761475884102,-500.0,0.00547945,120]
[392440952,1761475884117,-500.0,0.00547945,120]
[392440953,1761475884131,-289.77882419,0.00547945,120]
[392440954,1761475884146,-10000.0,0.00547945,120]
[392440955,1761475884161,-500.0,0.00547945,120]
[392440956,1761475884175,-10022.62708135,0.00549987,120]
[392440957,1761475884193,-2000.0,0.0055,120]
[392440958,1761475884208,-5000.24356798,0.0055,120]
[392440959,1761475884223,-1021.13011736,0.0055,120]
[392440960,1761475884238,-944.44444444,0.00552,120]
[392440961,1761475884252,-500.0,0.00553425,120]
[392440962,1761475884266,-944.44444444,0.00557,120]
[392440963,1761475884280,-500.0,0.00558904,120]
[392440964,1761475884294,-44576.31,0.0056,120]
[392440965,1761475884308,-944.44444444,0.00562,120]
[392440966,1761475884322,-500.0,0.00564384,120]
[392440967,1761475884335,-944.44444444,0.00567,120]
[392440968,1761475884349,-500.0,0.00569863,120]
[392440969,1761475884363,-41055.97239552,0.0057,120]
[392440970,1761475884377,-324.765,0.00570624,120]
[392440971,1761475884393,-324.766,0.00570624,120]
[392440972,1761475884407,-324.765,0.00570624,120]
[392440973,1761475884423,-324.765,0.00570624,120]
[392440974,1761475884550,-324.765,0.00570624,120]
[392440975,1761475884560,-944.44444444,0.00572,120]
[392440976,1761475884569,-500.0,0.00575342,120]
[392440977,1761475884578,-944.44444444,0.00577,120]
[392440978,1761475884587,-13625.439999,0.005788,120]
[392440979,1761475884598,-500.0,0.00580822,120]
[392440980,1761475884609,-944.44444444,0.00582,120]
[392440981,1761475884619,-2000.0,0.005863,68]
[392440982,1761475884628,-500.0,0.00586301,120]
[392440983,1761475884637,-944.44444444,0.00587,120]
[392440984,1761475884647,-500.0,0.00587,90]
[392440985,1761475884656,-6983.99199897,0.00588,120]
[392440986,1761475884668,-250.0,0.00588,120]
[392440987,1761475884678,-1109.11445917,0.0059,120]
[392440988,1761475884687,-3000.0,0.0059,60]
[392440989,1761475884697,-434.47169242,0.0059,120]
[392440990,1761475884705,-150.0,0.0059,120]
[392440991,1761475884715,-20639.88792767,0.0059,30]
[392440992,1761475884724,-820.27129684,0.0059,120]
[392440993,1761475884733,-914.45902084,0.0059,120]
[392440994,1761475884743,-19862.8140874,0.00590145,120]
[392440995,1761475884752,-1304.5502925,0.00591603,30]
[392440996,1761475884760,-500.0,0.00591781,120]
[392440997,1761475884770,-944.44444444,0.00592,120]
[392440998,1761475884779,-32152.6532432,0.00594794,120]
[392440999,1761475884788,-3381.24141114,0.0059601,84]
[392441000,1761475884797,-944.44444444,0.00597,120]
[392441001,1761475884806,-257.41804519,0.00597,30]
[392441002,1761475884815,-500.0,0.0059726,120]
[392441003,1761475884825,-1500.0,0.005989,120]
[392441004,1761475884836,-81055.74962994,0.0059898,120]
[392441005,1761475884846,-157414.2939276,0.00598987,120]
[392441006,1761475884856,-1000.0,0.00599999,120]
[392441007,1761475884866,-1000.0,0.006,120]
[392441008,1761475884875,-300.0,0.006,120]
[392441009,1761475884885,-2000.0,0.006,120]
[392441010,1761475884896,-11456.80518365,0.006,120]
[392441011,1761475884906,-6733.91115836,0.006,120]
[392441012,1761475884920,-448.0,0.006,120]
[392441013,1761475884930,-500.0,0.006,120]
[392441014,1761475884940,-1000.0,0.006,120]
[392441015,1761475884950,-5000.14725836,0.006,120]
[392441016,1761475884961,-4008.0,0.006,120]
[392441017,1761475884971,-1000.0,0.006,120]
[392441018,1761475884982,-300.0,0.006,120]